Workbook

Sheet Table rentabilité optimisé
B2: ETUDE RENTABILITE SOLUTIONS USAGE PRODUCTIF
B3: Pôle multiservice paysans PMP
B5: Dimmensionnement optimisé
B6: Dimmensionnement optimisé
B7: Dimmensionnement réel
B8: Cases à vérifier
B9: Cases à compléter
B10: Cases à laisser vides
B11: Cases calculées
B13: Caractéristiques techniques du Projet
B15: Usage Productif | C15: Selection | D15: Nb applications | E15: Capacité | G15: Puissance (kW) | I15: Prix (FCFA) | J15: Production | L15: Energie consommée (KWh/j) | M15: Energie à produire (kWh/j) | N15: Fonctionnement optimal | Q15: Coefficient déperdition (k)
E16: Quantité | F16: Unité | G16: Nominale | H16: Absorbée | J16: Produit final | K16: Tourteaux | N16: heures par jour pointe | O16: heures par jour moyen | P16: jours à l'année
B17: Moulin à grains, 250 Kg/h | C17: oui | D17: 1 | E17: 250 | F17: kg/h | G17: 4.686 | H17: 4.686 | I17: 1000000 | J17: 1 | K17: 0 | L17: =H17*N17*D17 -> 18.744 | M17: =(H17*N17*D17)/Q17 -> 26.77714286 | N17: 4 | O17: 4 | P17: 300 | Q17: 0.7
B18: Moulin à grains, 125 Kg/h | E18: 300 | F18: kg/h | G18: 2.2 | H18: 2.2 | I18: 700000
B19: Décortiqueuse électrique 150 Kg/h | C19: oui | D19: 1 | E19: 150 | F19: kg/h | G19: 4.4 | H19: 4.4 | I19: 1000000 | J19: 0.9 | K19: 0.1 | L19: =H19*N19*D19 -> 17.6 | M19: =(H19*N19*D19)/Q19 -> 25.14285714 | N19: 4 | O19: 3 | P19: 300 | Q19: 0.7
B20: Décortiqueuse électrique 75 Kg/h | E20: 150 | F20: kg/h | G20: 2.2 | H20: 2.2 | I20: 700000
B21: Vibro-tamiseur 800 Kg/h | C21: oui | D21: 1 | E21: 800 | F21: kg/h | G21: 0.4 | H21: 0.4 | I21: 1500000 | J21: - | K21: - | L21: =H21*N21*D21 -> 2.4 | M21: =(H21*N21*D21)/Q21 -> 3.428571429 | N21: 6 | O21: 5 | P21: 200 | Q21: 0.7
B22: Vibro-tamiseur 400 Kg/h | E22: 400 | F22: kg/h | G22: 0.3 | H22: 0.3 | I22: 900000
B23: Congélateur 360L | C23: non | D23: 1 | E23: 200 | F23: L/j | G23: 0.15 | H23: 0.15 | I23: 400000 | J23: - | K23: - | L23: =H23*N23*D23 -> 3.6 | M23: 6 | N23: 24 | O23: - | P23: 300 | Q23: 0.6
B24: Téléviseur | C24: non | D24: 1 | E24: - | F24: - | G24: 0.15 | H24: 0.15 | I24: 300000 | J24: - | K24: - | L24: 1.8 | M24: 3 | N24: 12 | O24: 8 | P24: 300 | Q24: 0.6
B25: Banc de recharge de smartphone | C25: oui | D25: 1 | E25: 25 | F25: téléphones/h | G25: =0.01*E25 -> 0.25 | H25: =G25 -> 0.25 | I25: 20000 | J25: - | K25: - | L25: 1 | M25: 1.428571429 | N25: 4 | O25: 5 | P25: 300 | Q25: 0.7
B26: Pompe solaire (modèle Lorentz PS2-150 Boost-60) | C26: non | D26: 2 | E26: 1.3 | F26: m3/h | G26: 0.3 | H26: 0.3 | I26: 1000000 | J26: - | K26: - | L26: 3 | M26: 5 | N26: 5 | O26: 1 | P26: 300 | Q26: 0.6
B27: Ordinateur | C27: non | D27: 1 | E27: - | F27: - | G27: 0.1 | H27: 0.1 | I27: 500000 | J27: - | K27: - | L27: =H27*N27*D27 -> 0 | M27: 0 | N27: 0 | O27: 6 | P27: 300 | Q27: 0.7
B28: Photocopieuse | C28: non | D28: 1 | E28: - | F28: - | G28: 0.15 | H28: 0.15 | I28: 500000 | J28: - | K28: - | L28: 0.15 | M28: 0.25 | N28: 1 | O28: 1 | P28: 300 | Q28: 0.6
B29: Combiné bois menuisier | C29: non | D29: 1 | E29: - | F29: - | G29: 1.5 | H29: 1.5 | I29: 2400000 | J29: - | K29: - | L29: 12 | M29: 20 | N29: 8 | O29: 3 | P29: 140 | Q29: 0.6
B30: Thermo-soudeur | C30: non | D30: 1 | E30: - | F30: - | I30: 0 | J30: - | K30: - | L30: 0 | M30: =(H30*N30*D30)/Q30 -> 0 | N30: 8 | O30: 8 | P30: 140 | Q30: 0.6
B31: Tisse sac | C31: oui | D31: 1 | E31: - | F31: - | G31: 0.25 | H31: 0.25 | I31: 150000 | N31: 1 | O31: 1 | P31: 300 | Q31: 0.7
B33: Éclairage | C33: oui | D33: 3 | E33: - | F33: - | G33: 0.011 | H33: 0.011 | I33: 1500 | J33: - | K33: - | L33: 0.33 | M33: 0.4714285714 | N33: 10 | O33: 6 | P33: 300 | Q33: 0.7
B34: Support aluminium | C34: oui | D34: =C135 -> 27 | E34: - | F34: - | I34: 35000
B35: Démarreur/variateur | C35: oui | D35: 1 | E35: - | F35: -
B36: Parafoudre | C36: oui | D36: 1 | E36: - | F36: - | I36: 140000
B37: Câbles et accessoires & installation int. | C37: oui | D37: 1 | E37: - | F37: - | I37: 1000000
B38: Batiment | C38: oui | D38: 1 | E38: - | F38: - | I38: 10000000
B39: Local batteries | C39: oui | D39: 1 | E39: - | F39: - | I39: 1000000
B40: Installation | C40: oui | D40: 1 | E40: - | F40: - | I40: 1000000
B41: Coffret DC
B42: Coffret AC
B43: Ensemble mise à la terre | D43: 1 | I43: 161755
B44: Coffret pour batteries | D44: 1 | I44: =9112*F107 -> 218688
B47: Alimentation Solaire | C47: Puissance (kW) | D47: Prix (FCFA) | E47: Coefficient déperdition | F47: Tension (V) | H47: Batteries | I47: Capacité (Ampères/h) | J47: Prix (FCFA) | K47: Tension (V) | L47: Durée de vie* | M47: * en conditions optimales, annoncées constructeur
B48: Modules PV (375 Wc) Polycristallin | C48: 0.375 | D48: 78148 | E48: 0.6 | F48: 24V | H48: Victron Energy Gel | I48: 220 | J48: 400000 | K48: 12 | L48: 7
B49: BlueSolar SPM-300-24 Monocristallin | C49: 0.3 | D49: 300000 | E49: 0.6 | F49: 24V | H49: GEL HOPPECKE 6 OPzV 370 | I49: 400 | J49: =660*655 -> 432300 | K49: 6 | L49: 10
B50: Tension nécessaire alimentation solaire | C50: =IF(J52<0.5,"12V",IF(AND(J52>=0.5,J52<2),"24V",IF(J52>=2,"48V"))) -> 48V | H50: Batteries OPZS 1220 (Ah) | I50: 1220 | J50: 194400.625 | K50: 2 | L50: 12
H51: Victron Energy Gel 2 | I51: 265 | J51: 580000 | K51: 12 | L51: 7
H52: Tension nécessaire batteries | I52: =IF(J52<0.5,12,IF(AND(J52>=0.5,J52<2),24,IF(J52>=2,48))) -> 48 | J52: =F104*INDEX(C:C,MATCH(F81,B:B,0)) -> 10.125
B54: Onduleur chargeur | C54: kVa | D54: Prix (FCFA) | H54: Regulateur/Onduleur reseau | J54: Prix (FCFA) | K54: Tension (V)
B55: Vitron Energy Phoenix | C55: 2 | D55: 450000 | H55: Onduleur reseau 20 KW | J55: 1870329 | K55: 12V/24V/48V
B56: Convertisseur chargeur victron 8KVA | C56: 8 | D56: 1660376 | H56: Régulateur Victron Smart bluesolar MPPT 150V ; 85A | J56: 316410 | K56: 12V/24V/48V
B58: Irradiation Solaire
B59: Month | C59: Jan | D59: Feb | E59: Mar | F59: Apr | G59: May | H59: Jun | I59: Jul | J59: Aug | K59: Sep | L59: Oct | M59: Nov | N59: Dec | O59: Year
B60: H(15)* | C60: 5.12 | D60: 5.75 | E60: 6.37 | F60: 6.61 | G60: 6.34 | H60: 6.05 | I60: 6.26 | J60: 5.51 | K60: 6.03 | L60: 5.81 | M60: 5.226 | N60: 5.03 | O60: =IF('Table rentabilité optimisé'!G95="x",MAX(C60:N60),IF('Table rentabilité optimisé'!G96="x",MIN(C60:N60),IF('Table rentabilité optimisé'!G97="x",AVERAGE(C60:N60),"erreur"))) -> 5.842166667
B62: Électricité du réseau
B63: Frais variables d'utilisation du réseau | D63: 1ère Tranche | E63: 2ème Tranche | F63: 3ème Tranche | J63: 1ère Tranche | K63: 2ème Tranche | L63: 3ème Tranche | M63: Total
B64: UP-Petite Puissance | C64: Tranche (KWh) | D64: 50 | E64: 500 | F64: ∞ | H64: UP-Petite Puissance | I64: Energie par Tranche | J64: =(F100*30)-SUM(K64:L64) -> 50 | K64: =IF((F100*30)>D64,(F100*30)-D64-L64,0) -> 450 | L64: =IF((F100*30)>E64,(F100*30)-E64,0) -> 702.22 | M64: =SUM(J64:L64) -> 1202.22
C65: Prix (KWh) | D65: 128.85 | E65: 135.68 | F65: 147.68 | I65: Coût (FCFA) | J65: =J64*D65 -> 6442.5 | K65: =K64*E65 -> 61056 | L65: =L64*F65 -> 103703.8496 | M65: =SUM(J65:L65) -> 171202.3496
B66: UP-Moyenne Puissance | C66: Tranche | D66: 100 | E66: 500 | F66: ∞ | H66: UP-Moyenne Puissance | I66: Energie par Tranche | J66: =(F100*30)-SUM(K66:L66) -> 100 | K66: =IF((F100*30)>D66,(F100*30)-D66-L66,0) -> 400 | L66: =IF((F100*30)>E66,(F100*30)-E66,0) -> 702.22 | M66: =SUM(J66:L66) -> 1202.22
C67: Prix (KWh) | D67: 129.81 | E67: 136.53 | F67: 149.24 | I67: Coût (FCFA) | J67: =J66*D67 -> 12981 | K67: =K66*E67 -> 54612 | L67: =L66*F67 -> 104799.3128 | M67: =SUM(J67:L67) -> 172392.3128
B69: Frais fixes de raccordement | C69: Fixe/Distance | D69: Prix TTC | E69: Étude raccordement
B70: Réseau HTA | C70: Kg câble | D70: 10.000 à 100.000 | E70: 550000
B71: Réseau HTA - Autres Frais | C71: Fixe | D71: 2.000.000 à 7.000.000 | E71: 550000
B72: Transformateur HT/MT - BT | C72: Fixe | D72: 4800000 | E72: 179000
B73: Extension BT* | C73: Distance | D73: 8260 | E73: 179000
B74: Dépend également de la distance de transport des équipements et nombre et type de poteaux non mesurable sauf par Sénélec (approximation)
B77: Choix de dimensionnement du projet
B79: Commandes annuelles totales de mil | G79: Tonnes
B81: Choix de l'alimentation solaire | F81: Modules PV (375 Wc) Polycristallin
B82: Choix du système de stokage | F82: Batteries OPZS 1220 (Ah)
B83: Choix de l'onduleur reseau | F83: Onduleur reseau 20 KW
B84: Choix de l'onduleur chargeur | F84: Convertisseur chargeur victron 8KVA
B85: Choix de la decortiqueuse | F85: Décortiqueuse électrique 150 Kg/h
B86: Choix du moulin | F86: Moulin à grains, 250 Kg/h
B87: Choix du vibro tamisseur | F87: Vibro-tamiseur 800 Kg/h
B88: Equivalent Réseau | F88: =IF(M65<M67,B64,B66) -> UP-Petite Puissance
B89: Raccordement nécessaire (MT, BT) et distance | F89: MT | G89: 600
B90: Montant Frais HTA et KG câble | F90: 4462549 | G90: 33
B92: Autonomie nécessaires au projet (jours) | F92: 0.9
B93: Profondeur décharge batteries | F93: 0.7
B95: Choix du cas pour dimensionnement solaire | F95: best case
F96: worst case
F97: average | G97: x
B99: Puissance Equipements | F99: =(G17+G19+G21+G23+G25+G33)*1.2 -> 11.8764 | G99: KW
B100: Energie journalière consommée (KWh) | F100: =SUMIF(C17:C33,"oui",L17:L33) -> 40.074 | G100: KWh
B101: Puissance crête projet (KW) | F101: =SUMIF(C17:C33,"oui",M17:M33)/O60 -> 9.799202025
B102: Capacité totale système stockage (Ampères/heure) | F102: =SUMIF(C17:C33,"oui",L17:L33)*1000*(F92)/(F93*I52) -> 1073.410714
B104: Nb de panneaux solaires | F104: =ROUNDUP(F101/INDEX(C:C,MATCH(F81,B:B,0)),0) -> 27 | G104: unités
B105: Nb de batteries en série | F105: =ROUNDUP(I52/INDEX(K:K,MATCH(F82,H:H,0)),0) -> 24 | G105: unités
B106: Nb de batteries en dérivation | F106: =ROUNDUP(F102/INDEX(I:I,MATCH(F82,H:H,0)),0) -> 1 | G106: unités
B107: Nb de batteries total | F107: =F105*F106 -> 24 | G107: unités
B108: Durée de vie attendue de la batterie | F108: =INDEX(L:L,MATCH(F82,H:H,0))*(130%-F93) -> 7.2 | G108: ans
B109: Convertisseur chargeur victron 8KVA | F109: =ROUNDUP(F99/INDEX(C:C,MATCH(F84,B:B,0)),0) -> 2 | G109: unités
B110: Nbre regulateur | F110: =IF(OR(C50=24,C50=12),1,2) -> 2 | G110: unités
B111: Nb régulateurs | G111: unités
B113: Employés nécessaires pour fonctionnement | F113: 4 | G113: personnes
B115: Calcul de charges variables et fixes
B117: CHARGES VARIABLES D'EXPLOITATION
B118: Désignation | C118: Quantité | E118: Prix unitaire | F118: Montant total/an | H118: évolution annuelle charges d'exploitation | K118: 0.03
B119: Achat mil tamisé paysan | C119: =F79*1000 -> 0 | D119: Kilos | E119: 180 | F119: =E119*C119 -> 0
B120: Cout de mise en sac | C120: =C119 -> 0 | D120: Kilos | E120: 5 | F120: =E120*C120 -> 0 | H120: Avantage coût électricité PV vs. Réseau | J120: Sur 1 an | K120: =((MIN(M67,M65)*12)+IF(F89="MT",(G89*D73)+D72+E70+F90,(G89*D73)))-(SUM(F135:F144,F149)+SUM(G135:G144,G149)) -> 2700336.095
B121: Cout de tamisage manuel | C121: 0 | D121: Kilos | E121: 2.5 | F121: =E121*C121 -> 0 | J121: Sur 5 ans | K121: =((MIN(M67,M65)*12*5)+IF(F89="MT",(G89*D73)+D72+E70+F90,(G89*D73)))-(SUM(F135:F144,F149)+(SUM(G135:G144,G149)*5)) -> 7152936.476
B122: Paiement opérateurs | C122: =SUM(C157:C162) -> 1235000 | D122: Kilos | E122: 5 | F122: =E122*C122 -> 6175000 | J122: Sur 10 ans | K122: =((MIN(M67,M65)*12*10)+IF(F89="MT",(G89*D73)+D72+E70+F90,(G89*D73)))-(SUM(F135:F144,F149)+(SUM(G135:G144,G149)*10)) -> 12718686.95
B124: Salaires gestion plateforme | C124: 1 | D124: =G113 -> personnes | E124: 61500 | F124: =E124*C124*12 -> 738000
B125: TOTAL (F CFA) | F125: =SUM(F119:F124) -> 6913000
B127: INVESTISSEMENTS
B128: Désignation | C128: Quantité | D128: Prix unitaire TTC | E128: Durée de vie (an) | F128: Montant Total TTC | G128: Amortissement annuel
B129: =B17 -> Moulin à grains, 250 Kg/h | C129: =IF($B$5=INDEX($B$6:$B$7,1,1),D17,'investissement réel'!B4) -> 1 | D129: =IF($B$5=INDEX($B$6:$B$7,1,1),INDEX(I:I,MATCH(F86,B:B,0)),'investissement réel'!C4) -> 1000000 | E129: 15 | F129: =C129*D129 -> 1000000 | G129: =IFERROR(F129/E129,0) -> 66666.66667
B130: =B23 -> Congélateur 360L | C130: =IF($B$5=INDEX($B$6:$B$7,1,1),D23,'investissement réel'!B5) -> 1 | D130: =IF($B$5=INDEX($B$6:$B$7,1,1),I23,'investissement réel'!C5) -> 400000 | E130: 7 | F130: =C130*D130 -> 400000 | G130: =IFERROR(F130/E130,0) -> 57142.85714
B131: =B25 -> Banc de recharge de smartphone | C131: =IF($B$5=INDEX($B$6:$B$7,1,1),D25,'investissement réel'!B6) -> 1 | D131: =IF($B$5=INDEX($B$6:$B$7,1,1),I25,'investissement réel'!C6) -> 20000 | E131: 10 | F131: 20000 | G131: 2000
B132: =B19 -> Décortiqueuse électrique 150 Kg/h | C132: =IF($B$5=INDEX($B$6:$B$7,1,1),D19,'investissement réel'!B7) -> 1 | D132: =IF($B$5=INDEX($B$6:$B$7,1,1),INDEX(I:I,MATCH(F85,B:B,0)),'investissement réel'!C7) -> 1000000 | E132: 15 | F132: 1000000 | G132: 66666.66667
B133: Vibro-tamiseur | C133: =IF($B$5=INDEX($B$6:$B$7,1,1),D21,'investissement réel'!B8) -> 1 | D133: =IF($B$5=INDEX($B$6:$B$7,1,1),INDEX(I:I,MATCH(F87,B:B,0)),'investissement réel'!C8) -> 1500000 | E133: 15 | F133: 1500000 | G133: 100000
B134: Éclairage | C134: =IF($B$5=INDEX($B$6:$B$7,1,1),D33,'investissement réel'!B9) -> 3 | D134: =IF($B$5=INDEX($B$6:$B$7,1,1),I33,'investissement réel'!C9) -> 1500 | E134: 2 | F134: 4500 | G134: 2250
B135: Modules PV 375 W | C135: =IF($B$5=INDEX($B$6:$B$7,1,1),F104,'investissement réel'!B10) -> 27 | D135: =IF($B$5=INDEX($B$6:$B$7,1,1),INDEX(D:D,MATCH(F81,B:B,0)),'investissement réel'!C10) -> 78148 | E135: 20 | F135: 2109996 | G135: 105499.8
B136: Batteries OPZS 1220 (Ah) | C136: =IF($B$5=INDEX($B$6:$B$7,1,1),F107,'investissement réel'!B12) -> 24 | D136: =IF($B$5=INDEX($B$6:$B$7,1,1),INDEX(J:J,MATCH(F82,H:H,0)),'investissement réel'!C12) -> 194400.625 | E136: 10 | F136: 4665615 | G136: 466561.5
B137: Onduleur reseau 20 KW | C137: =IF($B$5=INDEX($B$6:$B$7,1,1),0,'investissement réel'!B11) -> 0 | D137: =IF($B$5=INDEX($B$6:$B$7,1,1),0,'investissement réel'!C11) -> 0 | E137: 7 | F137: 0 | G137: 0
B138: Support aluminium | C138: =IF($B$5=INDEX($B$6:$B$7,1,1),D34,'investissement réel'!B22) -> 27 | D138: =IF($B$5=INDEX($B$6:$B$7,1,1),I34,'investissement réel'!C22) -> 35000 | E138: 10 | F138: 945000 | G138: 94500
B139: Convertisseur chargeur victron 8KVA | C139: =IF($B$5=INDEX($B$6:$B$7,1,1),F109,'investissement réel'!B13) -> 2 | D139: =IF($B$5=INDEX($B$6:$B$7,1,1),INDEX(D:D,MATCH(F84,B:B,0)),'investissement réel'!C13) -> 1660376 | E139: 15 | F139: 3320752 | G139: 221383.4667
B140: Coffret DC | C140: =IF($B$5=INDEX($B$6:$B$7,1,1),D41,'investissement réel'!B14) -> 0 | D140: =IF($B$5=INDEX($B$6:$B$7,1,1),I41,'investissement réel'!C14) -> 0 | E140: 15 | F140: 0 | G140: 0
B141: Coffret AC | C141: =IF($B$5=INDEX($B$6:$B$7,1,1),D42,'investissement réel'!B15) -> 0 | D141: =IF($B$5=INDEX($B$6:$B$7,1,1),I42,'investissement réel'!C15) -> 0 | E141: 20 | F141: 0 | G141: 0
B142: Démarreur/variateur | C142: =IF($B$5=INDEX($B$6:$B$7,1,1),D35,'investissement réel'!B23) -> 1 | D142: =IF($B$5=INDEX($B$6:$B$7,1,1),I35,'investissement réel'!C23) -> 0 | E142: 10 | F142: 0 | G142: 0
B143: Parafoudre | C143: =IF($B$5=INDEX($B$6:$B$7,1,1),D36,'investissement réel'!B24) -> 1 | D143: =IF($B$5=INDEX($B$6:$B$7,1,1),I36,'investissement réel'!C24) -> 140000 | E143: 7 | F143: 140000 | G143: 20000
B144: Câbles et accessoires & installation int. | C144: =IF($B$5=INDEX($B$6:$B$7,1,1),D37,'investissement réel'!B16) -> 1 | D144: =IF($B$5=INDEX($B$6:$B$7,1,1),I37,'investissement réel'!C16) -> 1000000 | E144: 30 | F144: 1000000 | G144: 33333.33333
B145: Ensemble mise à la terre | C145: =IF($B$5=INDEX($B$6:$B$7,1,1),D43,'investissement réel'!B17) -> 1 | D145: =IF($B$5=INDEX($B$6:$B$7,1,1),I43,'investissement réel'!C17) -> 161755 | E145: 30 | F145: 161755 | G145: 5391.833333
B146: Coffret pour batteries | C146: =IF($B$5=INDEX($B$6:$B$7,1,1),D43,'investissement réel'!B18) -> 1 | D146: =IF($B$5=INDEX($B$6:$B$7,1,1),I44,'investissement réel'!C18) -> 218688 | E146: 30 | F146: 218688 | G146: 7289.6
B147: Batiment | C147: =IF($B$5=INDEX($B$6:$B$7,1,1),D38,'investissement réel'!B19) -> 1 | D147: =IF($B$5=INDEX($B$6:$B$7,1,1),I38,'investissement réel'!C19) -> 10000000 | F147: 10000000 | G147: 0
B148: Local batteries | C148: =IF($B$5=INDEX($B$6:$B$7,1,1),D39,'investissement réel'!B20) -> 1 | D148: =IF($B$5=INDEX($B$6:$B$7,1,1),I39,'investissement réel'!C20) -> 1000000 | E148: 15 | F148: 1000000 | G148: 66666.66667
B149: Installation | C149: =IF($B$5=INDEX($B$6:$B$7,1,1),D40,'investissement réel'!B21) -> 1 | D149: =IF($B$5=INDEX($B$6:$B$7,1,1),I40,'investissement réel'!C21) -> 1000000 | F149: 1000000 | G149: 0
B150: TOTAL (F CFA) | F150: =SUM(F129:F149) -> 28486306 | G150: =SUM(G129:G149) -> 1315352.39
B152: Calcul des recettes d'exploitation
B154: RECETTES D'EXPLOITATION
B155: Désignation | C155: Modèle 1 | F155: Modèle 2 | I155: Choix modèle | J155: Recettes annuelles | L155: évolution annuelle recettes d'exploitation | O155: 0.03
C156: Quantité | D156: Unité | E156: Prix unitaire | F156: Quantité | G156: Unité | H156: Prix unitaire
B157: Service tamisage (inclus prix rachat) | C157: =E21*O21*P21 -> 800000 | D157: Kg | E157: 10 | I157: 1 | J157: =IF(I157=1,C157*E157,IF(I157=2,F157*H157,0)) -> 8000000
B158: Vente de mil tamisé | C158: 0 | D158: Kg | E158: 230 | I158: 1 | J158: =IF(I158=1,C158*E158,IF(I158=2,F158*H158,0)) -> 0
B159: Vente de mil tamisé décortiqué | C159: 0 | D159: Kg | E159: 300 | I159: 1 | J159: =IF(I159=1,C159*E159,IF(I159=2,F159*H159,0)) -> 0
B160: Vente de farine de mil | C160: 0 | D160: Kg | E160: 500 | I160: 1 | J160: =IF(I160=1,C160*E160,IF(I160=2,F160*H160,0)) -> 0
B161: Service décorticage | C161: =E19*O19*P19 -> 135000 | D161: Kg | E161: 15 | I161: 1 | J161: 2025000
B162: Service mouture | C162: =E17*O17*P17 -> 300000 | D162: Kg | E162: 15 | I162: 1 | J162: 4500000
B163: TOTAL (F CFA) | J163: =SUM(J157:J162) -> 14525000
B165: Ressources et Financement des investissements
B167: BFR (Besoin en fonds de roulement)
B168: Type de tiers | C168: Client/fournisseur | D168: Délais de paiement / stocks (jours) | E168: Part des achats/ventes
B169: Fournisseurs matières | C169: founisseur | D169: 0 | E169: 1
B170: Acheteurs services | C170: client | D170: 0 | E170: 0.5
B171: Stocks de consommable | D171: 30 | E171: 0
B172: Stocks de produits finis | D172: 30 | E172: 0
B174: Créances clients | C174: 0
B175: Crédit fournisseurs | C175: =(D170*J163*E170/365)*-1 -> 0
B176: Impact Stocks consommable | C176: =F119*D171/365 -> 0
B177: Impact Stocks produits finis | C177: =(J158*D172/365) -> 0
B178: BFR | C178: =SUM(C174:C177) -> 0 | D178: F CFA
B181: SCHÉMA DE FINANCEMENT | F181: ECHEANCIER DE REMBOURSEMENT
B182: Désignation | C182: Part | D182: Montant total TTC | F182: Année | G182: Capital | H182: Intérêts | I182: Reste | J182: Annuité
B183: Investissements | D183: =F150 -> 28486306 | F183: =IF(D190>10,"nb an insuffisant",IF(D190>=1,1,"-")) -> 1 | G183: =SUMIFS('Remboursement Mensualités'!C$14:C$133,'Remboursement Mensualités'!$F$14:$F$133,'Table rentabilité optimisé'!$F183) -> 2020598.958 | H183: =SUMIFS('Remboursement Mensualités'!D$14:D$133,'Remboursement Mensualités'!$F$14:$F$133,'Table rentabilité optimisé'!$F183) -> 1124372.772 | I183: =SUMIFS('Remboursement Mensualités'!E$14:E$133,'Remboursement Mensualités'!$F$14:$F$133,'Table rentabilité optimisé'!$F183) -> 196837530 | J183: =SUMIFS('Remboursement Mensualités'!B$14:B$133,'Remboursement Mensualités'!$F$14:$F$133,'Table rentabilité optimisé'!$F183) -> 3144971.73
B184: Besoin en fonds de roulement | D184: =C178 -> 0 | F184: =IF(D190>10,"nb an insuffisant",IF(D190>=2,2,"-")) -> 2 | G184: =SUMIFS('Remboursement Mensualités'!C$14:C$133,'Remboursement Mensualités'!$F$14:$F$133,'Table rentabilité optimisé'!$F184) -> 2162040.885 | H184: =SUMIFS('Remboursement Mensualités'!D$14:D$133,'Remboursement Mensualités'!$F$14:$F$133,'Table rentabilité optimisé'!$F184) -> 982930.8453 | I184: =SUMIFS('Remboursement Mensualités'!E$14:E$133,'Remboursement Mensualités'!$F$14:$F$133,'Table rentabilité optimisé'!$F184) -> 171680472.5 | J184: =SUMIFS('Remboursement Mensualités'!B$14:B$133,'Remboursement Mensualités'!$F$14:$F$133,'Table rentabilité optimisé'!$F184) -> 3144971.73
B185: COÛT TOTAL (F CFA) | D185: =SUM(D183:D184) -> 28486306 | F185: =IF(D190>10,"nb an insuffisant",IF(D190>=3,3,"-")) -> 3 | G185: =SUMIFS('Remboursement Mensualités'!C$14:C$133,'Remboursement Mensualités'!$F$14:$F$133,'Table rentabilité optimisé'!$F185) -> 2313383.747 | H185: =SUMIFS('Remboursement Mensualités'!D$14:D$133,'Remboursement Mensualités'!$F$14:$F$133,'Table rentabilité optimisé'!$F185) -> 831587.9834 | I185: =SUMIFS('Remboursement Mensualités'!E$14:E$133,'Remboursement Mensualités'!$F$14:$F$133,'Table rentabilité optimisé'!$F185) -> 144762421.1 | J185: =SUMIFS('Remboursement Mensualités'!B$14:B$133,'Remboursement Mensualités'!$F$14:$F$133,'Table rentabilité optimisé'!$F185) -> 3144971.73
B186: Apport personnel | C186: =D186/D185 -> 0.3861504542 | D186: =SUM(F147:F148) -> 11000000 | F186: =IF(D190>10,"nb an insuffisant",IF(D190>=4,4,"-")) -> 4 | G186: =SUMIFS('Remboursement Mensualités'!C$14:C$133,'Remboursement Mensualités'!$F$14:$F$133,'Table rentabilité optimisé'!$F186) -> 2475320.609 | H186: =SUMIFS('Remboursement Mensualités'!D$14:D$133,'Remboursement Mensualités'!$F$14:$F$133,'Table rentabilité optimisé'!$F186) -> 669651.1211 | I186: =SUMIFS('Remboursement Mensualités'!E$14:E$133,'Remboursement Mensualités'!$F$14:$F$133,'Table rentabilité optimisé'!$F186) -> 115960106 | J186: =SUMIFS('Remboursement Mensualités'!B$14:B$133,'Remboursement Mensualités'!$F$14:$F$133,'Table rentabilité optimisé'!$F186) -> 3144971.73
B187: Subvention | C187: 0 | D187: =C187*D185 -> 0 | F187: =IF(D190>10,"nb an insuffisant",IF(D190>=5,5,"-")) -> 5 | G187: =SUMIFS('Remboursement Mensualités'!C$14:C$133,'Remboursement Mensualités'!$F$14:$F$133,'Table rentabilité optimisé'!$F187) -> 2648593.052 | H187: =SUMIFS('Remboursement Mensualités'!D$14:D$133,'Remboursement Mensualités'!$F$14:$F$133,'Table rentabilité optimisé'!$F187) -> 496378.6785 | I187: =SUMIFS('Remboursement Mensualités'!E$14:E$133,'Remboursement Mensualités'!$F$14:$F$133,'Table rentabilité optimisé'!$F187) -> 85141628.9 | J187: =SUMIFS('Remboursement Mensualités'!B$14:B$133,'Remboursement Mensualités'!$F$14:$F$133,'Table rentabilité optimisé'!$F187) -> 3144971.73
B188: Emprunt | C188: =100%-C187-C186 -> 0.6138495458 | D188: =D185*C188 -> 17486306 | F188: =IF(D190>10,"nb an insuffisant",IF(D190>=6,6,"-")) -> 6 | G188: =SUMIFS('Remboursement Mensualités'!C$14:C$133,'Remboursement Mensualités'!$F$14:$F$133,'Table rentabilité optimisé'!$F188) -> 2833994.565 | H188: =SUMIFS('Remboursement Mensualités'!D$14:D$133,'Remboursement Mensualités'!$F$14:$F$133,'Table rentabilité optimisé'!$F188) -> 310977.1649 | I188: =SUMIFS('Remboursement Mensualités'!E$14:E$133,'Remboursement Mensualités'!$F$14:$F$133,'Table rentabilité optimisé'!$F188) -> 52165858.38 | J188: =SUMIFS('Remboursement Mensualités'!B$14:B$133,'Remboursement Mensualités'!$F$14:$F$133,'Table rentabilité optimisé'!$F188) -> 3144971.73
B189: Taux de l'emprunt | D189: 0.07 | F189: =IF(D190>10,"nb an insuffisant",IF(D190>=7,7,"-")) -> 7 | G189: =SUMIFS('Remboursement Mensualités'!C$14:C$133,'Remboursement Mensualités'!$F$14:$F$133,'Table rentabilité optimisé'!$F189) -> 3032374.185 | H189: =SUMIFS('Remboursement Mensualités'!D$14:D$133,'Remboursement Mensualités'!$F$14:$F$133,'Table rentabilité optimisé'!$F189) -> 112597.5453 | I189: =SUMIFS('Remboursement Mensualités'!E$14:E$133,'Remboursement Mensualités'!$F$14:$F$133,'Table rentabilité optimisé'!$F189) -> 16881783.94 | J189: =SUMIFS('Remboursement Mensualités'!B$14:B$133,'Remboursement Mensualités'!$F$14:$F$133,'Table rentabilité optimisé'!$F189) -> 3144971.73
B190: Remboursement de l'emprunt (années) | D190: 7 | F190: =IF(D190>10,"nb an insuffisant",IF(D190>=8,8,"-")) -> - | G190: =SUMIFS('Remboursement Mensualités'!C$14:C$133,'Remboursement Mensualités'!$F$14:$F$133,'Table rentabilité optimisé'!$F190) -> 0 | H190: =SUMIFS('Remboursement Mensualités'!D$14:D$133,'Remboursement Mensualités'!$F$14:$F$133,'Table rentabilité optimisé'!$F190) -> 0 | I190: =SUMIFS('Remboursement Mensualités'!E$14:E$133,'Remboursement Mensualités'!$F$14:$F$133,'Table rentabilité optimisé'!$F190) -> 0 | J190: =SUMIFS('Remboursement Mensualités'!B$14:B$133,'Remboursement Mensualités'!$F$14:$F$133,'Table rentabilité optimisé'!$F190) -> 0
F191: =IF(D190>10,"nb an insuffisant",IF(D190>=9,9,"-")) -> - | G191: =SUMIFS('Remboursement Mensualités'!C$14:C$133,'Remboursement Mensualités'!$F$14:$F$133,'Table rentabilité optimisé'!$F191) -> 0 | H191: =SUMIFS('Remboursement Mensualités'!D$14:D$133,'Remboursement Mensualités'!$F$14:$F$133,'Table rentabilité optimisé'!$F191) -> 0 | I191: =SUMIFS('Remboursement Mensualités'!E$14:E$133,'Remboursement Mensualités'!$F$14:$F$133,'Table rentabilité optimisé'!$F191) -> 0 | J191: =SUMIFS('Remboursement Mensualités'!B$14:B$133,'Remboursement Mensualités'!$F$14:$F$133,'Table rentabilité optimisé'!$F191) -> 0
F192: =IF(D190>10,"nb an insuffisant",IF(D190>=10,"Année 10","-")) -> - | G192: =SUMIFS('Remboursement Mensualités'!C$14:C$133,'Remboursement Mensualités'!$F$14:$F$133,'Table rentabilité optimisé'!$F192) -> 0 | H192: =SUMIFS('Remboursement Mensualités'!D$14:D$133,'Remboursement Mensualités'!$F$14:$F$133,'Table rentabilité optimisé'!$F192) -> 0 | I192: =SUMIFS('Remboursement Mensualités'!E$14:E$133,'Remboursement Mensualités'!$F$14:$F$133,'Table rentabilité optimisé'!$F192) -> 0 | J192: =SUMIFS('Remboursement Mensualités'!B$14:B$133,'Remboursement Mensualités'!$F$14:$F$133,'Table rentabilité optimisé'!$F192) -> 0
F193: TOTAL | G193: =SUM(G183:G192) -> 17486306 | H193: =SUM(H183:H192) -> 4528496.111 | I193: =SUM(I183:I192) -> 783429800.8 | J193: =SUM(J183:J192) -> 22014802.11
B196: Ressources et Financement des investissements
B198: RESULTAT BRUT D'EXPLOITATION (EBE)
B199: Désignation / Durée (années) | C199: 0 | D199: 1 | E199: 2 | F199: 3 | G199: 4 | H199: 5 | I199: 6 | J199: 7 | K199: 8 | L199: 9 | M199: Total
B200: Recettes | C200: =D188+D186 -> 28486306 | D200: =J163 -> 14525000 | E200: =D200+($O$155*D200) -> 14960750 | F200: 15409572.5 | G200: 15871859.68 | H200: 16348015.47 | I200: 16838455.93 | J200: 17343609.61 | K200: 17863917.9 | L200: 18399835.43 | M200: =SUM(C200:L200) -> 176047322.5
B201: Dépenses | C201: =D183 -> 28486306 | D201: =F125 -> 6913000 | E201: =D201+($K$118*D201) -> 7120390 | F201: =E201+($K$118*E201) -> 7334001.7 | G201: =F201+($K$118*F201) -> 7554021.751 | H201: =G201+($K$118*G201) -> 7780642.404 | I201: 8014061.676 | J201: 8254483.526 | K201: 8502118.032 | L201: 8757181.573 | M201: 98716206.66
B202: Amortissements | C202: 0 | D202: =$G$150 -> 1315352.39 | E202: 1315352.39 | F202: 1315352.39 | G202: 1315352.39 | H202: 1315352.39 | I202: 1315352.39 | J202: 1315352.39 | K202: 1315352.39 | L202: 1315352.39 | M202: 11838171.51
B203: Remboursement emprunt | C203: 0 | D203: =IFERROR(INDEX($J$183:$J$192,MATCH(D199,$F$183:$F$192,0)),0) -> 3144971.73 | E203: 3144971.73 | F203: 3144971.73 | G203: 3144971.73 | H203: 3144971.73 | I203: 3144971.73 | J203: 3144971.73 | K203: 0 | L203: 0 | M203: 22014802.11
B204: Bénéfice avant impôts | C204: 0 | D204: =D200-SUM(D201:D203) -> 3151675.879 | E204: =E200-SUM(E201:E203) -> 3380035.879 | F204: 3615246.679 | G204: 3857513.803 | H204: 4107048.941 | I204: 4364070.133 | J204: 4628801.961 | K204: 8046447.473 | L204: 8327301.469 | M204: 43478142.22
B205: Impôts sur le bénéfice | C205: 0 | D205: =IF(D204<0,0,0.3*D204) -> 945502.7638 | E205: =IF(E204<0,0,0.3*E204) -> 1014010.764 | F205: 1084574.004 | G205: 1157254.141 | H205: 1232114.682 | I205: 1309221.04 | J205: 1388640.588 | K205: 2413934.242 | L205: 2498190.441 | M205: 13043442.67
B206: Bénéfice après impôts | C206: 0 | D206: =D204-D205 -> 2206173.116 | E206: =E204-E205 -> 2366025.116 | F206: 2530672.676 | G206: 2700259.662 | H206: 2874934.259 | I206: 3054849.093 | J206: 3240161.372 | K206: 5632513.231 | L206: 5829111.028 | M206: 30434699.55
B207: Trésorerie | C207: =C200-C201 -> 0 | D207: =C207+D206 -> 2206173.116 | E207: 4572198.231 | F207: =E207+F206 -> 7102870.907 | G207: 9803130.569 | H207: =G207+H206 -> 12678064.83 | I207: 15732913.92 | J207: 18973075.29 | K207: 24605588.52 | L207: 30434699.55
B208: Cash Flows | C208: 0 | D208: =D206+D203-($H$193/$D$190) -> 4704216.83 | E208: 4864068.83 | F208: 5028716.39 | G208: 5198303.377 | H208: 5372977.973 | I208: 5552892.807 | J208: 5738205.087 | K208: 4985585.215 | L208: 5182183.013
B209: Cash Flows cumulés | C209: =-C201 -> -28486306 | D209: =C209+D208 -> -23782089.17 | E209: =D209+E208 -> -18918020.34 | F209: =E209+F208 -> -13889303.95 | G209: -8691000.574 | H209: =G209+H208 -> -3318022.601 | I209: 2234870.207 | J209: 7973075.293 | K209: 12958660.51 | L209: 18140843.52
B212: Indicateurs économiques
B214: VAN | C214: =NPV(F214,IF(D199<=H214,D208,0),IF(E199<=H214,E208,0),IF(F199<=H214,F208,0),IF(G199<=H214,G208,0),IF(H199<=H214,H208,0),IF(I199<=H214,I208,0),IF(J199<=H214,J208,0),IF(K199<=H214,K208,0),IF(L199<=H214,L208,0))-D183 -> 8172885.519 | D214: FCFA | E214: Taux d'actualisation | F214: 0.05 | G214: Durée VAN (ans) | H214: 9 | N214: =-D183+IF(H214>=D199,(D206+D203-H193/D190)*((1+F214)^-1),0)+IF(H214>=E199,(E206+E203-H193/D190)*((1+F214)^-2),0)+IF(H214>=F199,(F206+F203-H193/D190)*((1+F214)^-3),0)+IF(H214>=G199,(G206+G203-H193/D190)*((1+F214)^-4),0)+IF(H214>=H199,(H206+H203-H193/D190)*((1+F214)^-5),0)+IF(H214>=I199,(I206+I203-H193/D190)*((1+F214)^-6),0)+IF(H214>=J199,(J206+J203-H193/D190)*((1+F214)^-7),0)+IF(H214>=K199,(K206+K203-H193/D190)*((1+F214)^-8),0)+IF(H214>=L199,(L206+L203-H193/D190)*((1+F214)^-9),0) -> 8172885.519 | O214: calcul VAN
B215: TRI | C215: =IRR(N215:W215) -> 0.1092168006 | N215: =-D183 -> -28486306 | O215: =IF(D199<=H214,D208,0) -> 4704216.83 | P215: =IF(E199<=H214,E208,0) -> 4864068.83 | Q215: =IF(F199<=H214,F208,0) -> 5028716.39 | R215: =IF(G199<=H214,G208,0) -> 5198303.377 | S215: =IF(H199<=H214,H208,0) -> 5372977.973 | T215: =IF(I199<=H214,I208,0) -> 5552892.807 | U215: =IF(J199<=H214,J208,0) -> 5738205.087 | V215: =IF(K199<=H214,K208,0) -> 4985585.215 | W215: =IF(L199<=H214,L208,0) -> 5182183.013
B216: IPI | C216: =SUM(O215:W215)/D183 -> 1.636826815 | D216: ="Pour 1000 CFA investis, on récupère "&ROUND(N216,0)&" CFA" -> Pour 1000 CFA investis, on récupère 637 CFA | N216: =(C216-1)*1000 -> 636.826815
B217: DCRI | C217: =N217+(-P217/(O217-P217)) -> 5.597530461 | D217: ="Le délai de récupération est de "&ROUNDDOWN(C217,0)&" ans et "&ROUNDDOWN((C217-ROUNDDOWN(C217,0))*12,0)&" mois" -> Le délai de récupération est de 5 ans et 7 mois | N217: =IF(AND(L209<0,L199<=H214),L199,IF(AND(K209<0,K199<=H214),K199,IF(AND(J209<0,J199<=H214),J199,IF(AND(I209<0,I199<=H214),I199,IF(AND(H209<0,H199<=H214),H199,IF(AND(G209<0,G199<=H214),G199,IF(AND(F209<0,F199<=H214),F199,IF(AND(E209<0,E199<=H214),E199,IF(AND(D209<0,D199<=H214),D199,IF(AND(C209<0,C199<=H214),C199)))))))))) -> 5 | O217: =INDEX(C209:L209,MATCH(INDEX(C199:L199,MATCH(P217,C209:L209,0))+1,C199:L199,0)) -> 2234870.207 | P217: =IF(AND(L209<0,L199<=H214),L209,IF(AND(K209<0,K199<=H214),K209,IF(AND(J209<0,J199<=H214),J209,IF(AND(I209<0,I199<=H214),I209,IF(AND(H209<0,H199<=H214),H209,IF(AND(G209<0,G199<=H214),G209,IF(AND(F209<0,F199<=H214),F209,IF(AND(E209<0,E199<=H214),E209,IF(AND(D209<0,D199<=H214),D209,IF(AND(C209<0,C199<=H214),C209)))))))))) -> -3318022.601
B218: DSCR | C218: =(D200-D201)/(D203) -> 2.420371518
B221: Factures simulées
B224: Durée de vie du projet ou d'un prêt | F224: 7 | G224: ans
B225: Investissement total projet | F225: =SUM('investissement réel'!E4:E24)-10000000 -> 31375068 | G225: FCFA
B226: Intérêts théoriques | F226: 13765297.78 | G226: FCFA
B227: Investissement optimisé aux machines | F227: 17486306 | G227: FCFA
B228: Taux de remboursement (intérêts) | F228: =H193 -> 4528496.111 | G228: FCFA
B229: Amortissements | F229: =G150*F224 -> 9207466.733 | G229: FCFA
B231: Energie nécessaire par jour | F231: =F100 -> 40.074 | G231: KWh
B232: Energie nécessaire durée projet | F232: =F231*365*F224 -> 102389.07 | G232: KWh
B233: Energie nécessaire mouture (1kg) | F233: =((H17*Q17)/E17)*1.5 -> 0.0196812 | G233: KWh
B234: Energie nécessaire décorticage (1kg) | F234: =((H19*Q19)/E19)*1.5 -> 0.0308 | G234: KWh
B235: Energie nécessaire tamisage (1kg) | F235: =((H21*Q21)/E21)*1.5 -> 0.000525 | G235: KWh
B237: Temps total utilisation des machines possible/mois | F237: =(N17+N19+N21)*30 -> 420 | G237: heures
B238: Temps nécessaire mouture (1kg) | F238: =3600/250 -> 14.4 | G238: Sec
B239: Temps nécessaire décorticage (1kg) | F239: =3600/150 -> 24 | G239: Sec
B240: Temps nécessaire tamisage (1kg) | F240: =3600/800 -> 4.5 | G240: Sec
B242: Prix moyen du KWh sans amortissement | F242: =SUM(F227:F228)/F232 -> 215.0112518 | G242: FCFA
B243: Prix moyen du KWh avec amortissement | F243: =SUM(F227:F229)/F232 -> 304.9375177 | G243: FCFA
B244: Prix moyen mouture (1kg) | F244: =F233*F242 -> 4.231679449 | G244: FCFA
... 29 more rows

Sheet investissement réel
A3: Désignation | B3: Quantité | C3: Prix unitaire TTC | D3: Durée de vie (an) | E3: Montant Total TTC | F3: Amortissement annuel
A4: Moulin à grains | B4: 1 | C4: 1000000 | D4: 15 | E4: =B4*C4 -> 1000000 | F4: =E4/D4 -> 66666.66667
A5: Congélateur 360L | B5: 1 | C5: 400000 | D5: 7 | E5: =B5*C5 -> 400000 | F5: =E5/D5 -> 57142.85714
A6: Banc de recharge de smartphone | B6: 1 | C6: 20000 | D6: 10 | E6: 20000 | F6: =E6/D6 -> 2000
A7: Décortiqueuse électrique | B7: 1 | C7: 1000000 | D7: 15 | E7: 1000000 | F7: 66666.66667
A8: Vibro-tamiseur | B8: 1 | C8: 1300000 | D8: 15 | E8: =B8*C8 -> 1300000 | F8: 86666.66667
A9: Éclairage | B9: 3 | C9: 1500 | D9: 2 | E9: 4500 | F9: 2250
A10: Modules PV (375 Wc) | B10: 54 | C10: 78148.14815 | D10: 20 | E10: =B10*C10 -> 4220000 | F10: 211000
A11: Onduleur reseau 20 KW | B11: 1 | C11: 1870329 | D11: 10 | E11: 1870329 | F11: 187032.9
A12: Batteries OPZS 1220 (Ah) | B12: 48 | C12: 194400.625 | D12: 7 | E12: 9331230 | F12: 1333032.857
A13: Convertisseur chargeur victron 8KVA | B13: 3 | C13: 1660376 | D13: 10 | E13: =B13*C13 -> 4981128 | F13: 498112.8
A14: Coffret DC | B14: 1 | C14: 275563 | D14: 15 | E14: 275563 | F14: 18370.86667
A15: Coffret AC | B15: 1 | C15: 1049763 | D15: 15 | E15: 1049763 | F15: 69984.2
A16: Câbles et accessoires | B16: 1 | C16: 583632 | D16: 20 | E16: 583632 | F16: 29181.6
A17: Ensemble mise à la terre et accessoires | B17: 1 | C17: 161755 | D17: 10 | E17: 161755 | F17: 16175.5
A18: Coffret pour batteries | B18: 1 | C18: 437401 | D18: 7 | E18: 437401 | F18: 62485.85714
A19: Batiment | B19: 1 | C19: 10000000 | D19: 30 | E19: 10000000 | F19: 333333.3333
A20: Local batteries | B20: 1 | C20: 1149167 | D20: 30 | E20: 1149167 | F20: 38305.56667
A21: Installation | B21: 1 | C21: 1370600 | D21: 30 | E21: 1370600 | F21: 45686.66667
A22: Support aluminium | B22: 14 | C22: 82500 | D22: 20 | E22: =B22*C22 -> 1155000 | F22: =IFERROR(E22/D22,0) -> 57750
A23: Démarreur/variateur | B23: 1 | C23: 925000 | D23: 15 | E23: 925000 | F23: 61666.66667
A24: Parafoudre | B24: 1 | C24: 140000 | D24: 15 | E24: 140000 | F24: 9333.333333
A25: TOTAL (F CFA) | E25: =SUM(E4:E24) -> 41375068 | F25: 2737297.619

Sheet Remboursement Mensualités (hidden)
A1: Remboursement de prêt
A2: Taux annuel | B2: ='Table rentabilité optimisé'!D189 -> 0.07
A3: Capital emprunté | B3: ='Table rentabilité optimisé'!D188 -> 17486306
A4: Durée du prêt (en année) | B4: ='Table rentabilité optimisé'!D190 -> 7 | C4: =B4*12 -> 84
A5: Mensualité à régler | B5: =-PMT((1+B2)^(1/12)-1,B4*12,B3) -> 262080.9775 | C5: Formule mensualité | D5: =-VPM((1+B2)^(1/12)-1;B4*12;B3)
A7: Décomposition de la mensualité
A8: Remboursement du principal | B8: =-PPMT((1+B2)^(1/12)-1,1,B4*12,B3) -> 163210.8611 | C8: Formule principal | D8: =-PRINCPER((1+B2)^(1/12)-1;1;B4*12;B3)
A9: Remboursement des interêts | B9: =-IPMT((1+B2)^(1/12)-1,1,B4*12,B3) -> 98870.11641 | C9: Formule intérêt | D9: =-INTPER((1+B2)^(1/12)-1;1;B4*12;B3)
A12: Dans les formules ci-dessous Taux de période = TP = (1+$B$2)^(1/12)-1
A13: Périodes | B13: Mensualité | C13: Capital | D13: Intérêts | E13: Reste (ou résiduel) | F13: Années
A14: =IF(B4<>0,1,"-") -> 1 | B14: =IF(A14<>"-",C14+D14,"") -> 262080.9775 | C14: =IF(A14<>"-",-PPMT((1+$B$2)^(1/12)-1,A14,$B$4*12,$B$3),"") -> 163210.8611 | D14: =IF(A14<>"-",-IPMT((1+$B$2)^(1/12)-1,A14,$B$4*12,$B$3),"") -> 98870.11641 | E14: =IF(A14<>"-",$B$3+CUMPRINC((1+$B$2)^(1/12)-1,$B$4*12,$B$3,1,A14,0),"") -> 17323095.14 | F14: =IF(A14<>"-",1,"") -> 1 | G14: =IF(A14<>"-",1,"") -> 1
A15: =IF(AND($B$4<>0,A14<$C$4),A14+1,"-") -> 2 | B15: =IF(A15<>"-",C15+D15,"") -> 262080.9775 | C15: =IF(A15<>"-",-PPMT((1+$B$2)^(1/12)-1,A15,$B$4*12,$B$3),"") -> 164133.679 | D15: =IF(A15<>"-",-IPMT((1+$B$2)^(1/12)-1,A15,$B$4*12,$B$3),"") -> 97947.29848 | E15: =IF(A15<>"-",$B$3+CUMPRINC((1+$B$2)^(1/12)-1,$B$4*12,$B$3,1,A15,0),"") -> 17158961.46 | F15: =IF(A15<>"-",IF(G14<G15,F14,F14+1),"") -> 1 | G15: =IF(A15="-","",IF(G14<12,G14+1,1)) -> 2
A16: =IF(AND($B$4<>0,A15<$C$4),A15+1,"-") -> 3 | B16: 262080.9775 | C16: 165061.7147 | D16: 97019.26279 | E16: 16993899.75 | F16: =IF(A16<>"-",IF(G15<G16,F15,F15+1),"") -> 1 | G16: =IF(A16="-","",IF(G15<12,G15+1,1)) -> 3
A17: 4 | B17: 262080.9775 | C17: 165994.9977 | D17: 96085.97986 | E17: 16827904.75 | F17: 1 | G17: 4
A18: 5 | B18: 262080.9775 | C18: 166933.5575 | D18: 95147.42001 | E18: 16660971.19 | F18: 1 | G18: 5
A19: 6 | B19: 262080.9775 | C19: 167877.4241 | D19: 94203.5534 | E19: 16493093.77 | F19: 1 | G19: 6
A20: 7 | B20: 262080.9775 | C20: 168826.6275 | D20: 93254.35004 | E20: 16324267.14 | F20: 1 | G20: 7
A21: 8 | B21: 262080.9775 | C21: 169781.1978 | D21: 92299.77974 | E21: 16154485.94 | F21: 1 | G21: 8
A22: 9 | B22: 262080.9775 | C22: 170741.1653 | D22: 91339.81217 | E22: 15983744.78 | F22: 1 | G22: 9
A23: 10 | B23: 262080.9775 | C23: 171706.5607 | D23: 90374.41679 | E23: 15812038.21 | F23: 1 | G23: 10
A24: 11 | B24: 262080.9775 | C24: 172677.4146 | D24: 89403.56294 | E24: 15639360.8 | F24: 1 | G24: 11
A25: 12 | B25: 262080.9775 | C25: 173653.7578 | D25: 88427.21973 | E25: 15465707.04 | F25: 1 | G25: 12
A26: 13 | B26: 262080.9775 | C26: 174635.6214 | D26: 87445.35614 | E26: 15291071.42 | F26: 2 | G26: 1
A27: 14 | B27: 262080.9775 | C27: 175623.0366 | D27: 86457.94094 | E27: 15115448.38 | F27: 2 | G27: 2
A28: 15 | B28: 262080.9775 | C28: 176616.0347 | D28: 85464.94276 | E28: 14938832.35 | F28: 2 | G28: 3
A29: 16 | B29: 262080.9775 | C29: 177614.6475 | D29: 84466.33002 | E29: 14761217.7 | F29: 2 | G29: 4
A30: 17 | B30: 262080.9775 | C30: 178618.9065 | D30: 83462.07098 | E30: 14582598.8 | F30: 2 | G30: 5
A31: 18 | B31: 262080.9775 | C31: 179628.8438 | D31: 82452.13372 | E31: 14402969.95 | F31: 2 | G31: 6
A32: 19 | B32: 262080.9775 | C32: 180644.4914 | D32: 81436.48612 | E32: 14222325.46 | F32: 2 | G32: 7
A33: 20 | B33: 262080.9775 | C33: 181665.8816 | D33: 80415.0959 | E33: 14040659.58 | F33: 2 | G33: 8
A34: 21 | B34: 262080.9775 | C34: 182693.0469 | D34: 79387.93059 | E34: 13857966.53 | F34: 2 | G34: 9
A35: 22 | B35: 262080.9775 | C35: 183726.02 | D35: 78354.95754 | E35: 13674240.51 | F35: 2 | G35: 10
A36: 23 | B36: 262080.9775 | C36: 184764.8336 | D36: 77316.14392 | E36: 13489475.68 | F36: 2 | G36: 11
A37: 24 | B37: 262080.9775 | C37: 185809.5208 | D37: 76271.45668 | E37: 13303666.16 | F37: 2 | G37: 12
A38: 25 | B38: 262080.9775 | C38: 186860.1149 | D38: 75220.86264 | E38: 13116806.04 | F38: 3 | G38: 1
A39: 26 | B39: 262080.9775 | C39: 187916.6491 | D39: 74164.32838 | E39: 12928889.39 | F39: 3 | G39: 2
A40: 27 | B40: 262080.9775 | C40: 188979.1572 | D40: 73101.82033 | E40: 12739910.24 | F40: 3 | G40: 3
A41: 28 | B41: 262080.9775 | C41: 190047.6728 | D41: 72033.3047 | E41: 12549862.56 | F41: 3 | G41: 4
A42: 29 | B42: 262080.9775 | C42: 191122.23 | D42: 70958.74753 | E42: 12358740.33 | F42: 3 | G42: 5
A43: 30 | B43: 262080.9775 | C43: 192202.8629 | D43: 69878.11465 | E43: 12166537.47 | F43: 3 | G43: 6
A44: 31 | B44: 262080.9775 | C44: 193289.6058 | D44: 68791.37172 | E44: 11973247.86 | F44: 3 | G44: 7
A45: 32 | B45: 262080.9775 | C45: 194382.4933 | D45: 67698.48419 | E45: 11778865.37 | F45: 3 | G45: 8
A46: 33 | B46: 262080.9775 | C46: 195481.5602 | D46: 66599.41731 | E46: 11583383.81 | F46: 3 | G46: 9
A47: 34 | B47: 262080.9775 | C47: 196586.8414 | D47: 65494.13615 | E47: 11386796.97 | F47: 3 | G47: 10
A48: 35 | B48: 262080.9775 | C48: 197698.3719 | D48: 64382.60556 | E48: 11189098.6 | F48: 3 | G48: 11
A49: 36 | B49: 262080.9775 | C49: 198816.1873 | D49: 63264.79023 | E49: 10990282.41 | F49: 3 | G49: 12
A50: 37 | B50: 262080.9775 | C50: 199940.3229 | D50: 62140.6546 | E50: 10790342.09 | F50: 4 | G50: 1
A51: 38 | B51: 262080.9775 | C51: 201070.8146 | D51: 61010.16294 | E51: 10589271.27 | F51: 4 | G51: 2
A52: 39 | B52: 262080.9775 | C52: 202207.6982 | D52: 59873.27933 | E52: 10387063.58 | F52: 4 | G52: 3
A53: 40 | B53: 262080.9775 | C53: 203351.0099 | D53: 58729.9676 | E53: 10183712.57 | F53: 4 | G53: 4
A54: 41 | B54: 262080.9775 | C54: 204500.7861 | D54: 57580.19143 | E54: 9979211.779 | F54: 4 | G54: 5
A55: 42 | B55: 262080.9775 | C55: 205657.0633 | D55: 56423.91425 | E55: 9773554.716 | F55: 4 | G55: 6
A56: 43 | B56: 262080.9775 | C56: 206819.8782 | D56: 55261.09931 | E56: 9566734.838 | F56: 4 | G56: 7
A57: 44 | B57: 262080.9775 | C57: 207989.2679 | D57: 54091.70965 | E57: 9358745.57 | F57: 4 | G57: 8
A58: 45 | B58: 262080.9775 | C58: 209165.2694 | D58: 52915.7081 | E58: 9149580.3 | F58: 4 | G58: 9
A59: 46 | B59: 262080.9775 | C59: 210347.9203 | D59: 51733.05725 | E59: 8939232.38 | F59: 4 | G59: 10
A60: 47 | B60: 262080.9775 | C60: 211537.258 | D60: 50543.71953 | E60: 8727695.122 | F60: 4 | G60: 11
A61: 48 | B61: 262080.9775 | C61: 212733.3204 | D61: 49347.65712 | E61: 8514961.802 | F61: 4 | G61: 12
A62: 49 | B62: 262080.9775 | C62: 213936.1455 | D62: 48144.832 | E62: 8301025.656 | F62: 5 | G62: 1
A63: 50 | B63: 262080.9775 | C63: 215145.7716 | D63: 46935.20592 | E63: 8085879.885 | F63: 5 | G63: 2
A64: 51 | B64: 262080.9775 | C64: 216362.2371 | D64: 45718.74045 | E64: 7869517.648 | F64: 5 | G64: 3
A65: 52 | B65: 262080.9775 | C65: 217585.5806 | D65: 44495.39691 | E65: 7651932.067 | F65: 5 | G65: 4
A66: 53 | B66: 262080.9775 | C66: 218815.8411 | D66: 43265.1364 | E66: 7433116.226 | F66: 5 | G66: 5
A67: 54 | B67: 262080.9775 | C67: 220053.0577 | D67: 42027.91982 | E67: 7213063.168 | F67: 5 | G67: 6
A68: 55 | B68: 262080.9775 | C68: 221297.2697 | D68: 40783.70784 | E68: 6991765.898 | F68: 5 | G68: 7
A69: 56 | B69: 262080.9775 | C69: 222548.5166 | D69: 39532.4609 | E69: 6769217.382 | F69: 5 | G69: 8
A70: 57 | B70: 262080.9775 | C70: 223806.8383 | D70: 38274.13924 | E70: 6545410.544 | F70: 5 | G70: 9
A71: 58 | B71: 262080.9775 | C71: 225072.2747 | D71: 37008.70283 | E71: 6320338.269 | F71: 5 | G71: 10
A72: 59 | B72: 262080.9775 | C72: 226344.866 | D72: 35736.11147 | E72: 6093993.403 | F72: 5 | G72: 11
A73: 60 | B73: 262080.9775 | C73: 227624.6528 | D73: 34456.32469 | E73: 5866368.75 | F73: 5 | G73: 12
A74: 61 | B74: 262080.9775 | C74: 228911.6757 | D74: 33169.30181 | E74: 5637457.074 | F74: 6 | G74: 1
A75: 62 | B75: 262080.9775 | C75: 230205.9756 | D75: 31875.00191 | E75: 5407251.099 | F75: 6 | G75: 2
A76: 63 | B76: 262080.9775 | C76: 231507.5937 | D76: 30573.38386 | E76: 5175743.505 | F76: 6 | G76: 3
A77: 64 | B77: 262080.9775 | C77: 232816.5712 | D77: 29264.40627 | E77: 4942926.934 | F77: 6 | G77: 4
A78: 65 | B78: 262080.9775 | C78: 234132.95 | D78: 27948.02752 | E78: 4708793.984 | F78: 6 | G78: 5
A79: 66 | B79: =IF(A79<>"-",C79+D79,"") -> 262080.9775 | C79: =IF(A79<>"-",-PPMT((1+$B$2)^(1/12)-1,A79,$B$4*12,$B$3),"") -> 235456.7717 | D79: =IF(A79<>"-",-IPMT((1+$B$2)^(1/12)-1,A79,$B$4*12,$B$3),"") -> 26624.20578 | E79: =IF(A79<>"-",$B$3+CUMPRINC((1+$B$2)^(1/12)-1,$B$4*12,$B$3,1,A79,0),"") -> 4473337.212 | F79: 6 | G79: 6
A80: =IF(AND($B$4<>0,A79<$C$4),A79+1,"-") -> 67 | B80: 262080.9775 | C80: 236788.0785 | D80: 25292.89896 | E80: 4236549.134 | F80: =IF(A80<>"-",IF(G79<G80,F79,F79+1),"") -> 6 | G80: =IF(A80="-","",IF(G79<12,G79+1,1)) -> 7
A81: 68 | B81: 262080.9775 | C81: 238126.9128 | D81: 23954.06474 | E81: 3998422.221 | F81: 6 | G81: 8
A82: 69 | B82: 262080.9775 | C82: 239473.317 | D82: 22607.66056 | E82: 3758948.904 | F82: 6 | G82: 9
A83: 70 | B83: 262080.9775 | C83: 240827.3339 | D83: 21253.64361 | E83: 3518121.57 | F83: 6 | G83: 10
A84: 71 | B84: 262080.9775 | C84: 242189.0067 | D84: 19891.97085 | E84: 3275932.563 | F84: 6 | G84: 11
A85: 72 | B85: 262080.9775 | C85: 243558.3785 | D85: 18522.59899 | E85: 3032374.185 | F85: 6 | G85: 12
A86: 73 | B86: 262080.9775 | C86: 244935.493 | D86: 17145.48451 | E86: 2787438.692 | F86: 7 | G86: 1
A87: 74 | B87: 262080.9775 | C87: 246320.3939 | D87: 15760.58362 | E87: 2541118.298 | F87: 7 | G87: 2
A88: 75 | B88: 262080.9775 | C88: 247713.1252 | D88: 14367.8523 | E88: 2293405.173 | F88: 7 | G88: 3
A89: 76 | B89: 262080.9775 | C89: 249113.7312 | D89: 12967.24628 | E89: 2044291.441 | F89: 7 | G89: 4
A90: 77 | B90: 262080.9775 | C90: 250522.2565 | D90: 11558.72102 | E90: 1793769.185 | F90: 7 | G90: 5
A91: 78 | B91: 262080.9775 | C91: 251938.7457 | D91: 10142.23176 | E91: 1541830.439 | F91: 7 | G91: 6
A92: 79 | B92: 262080.9775 | C92: 253363.244 | D92: 8717.733466 | E92: 1288467.195 | F92: 7 | G92: 7
A93: 80 | B93: 262080.9775 | C93: 254795.7967 | D93: 7285.180849 | E93: 1033671.399 | F93: 7 | G93: 8
A94: 81 | B94: 262080.9775 | C94: 256236.4491 | D94: 5844.52837 | E94: 777434.9494 | F94: 7 | G94: 9
A95: 82 | B95: 262080.9775 | C95: 257685.2473 | D95: 4395.730233 | E95: 519749.7021 | F95: 7 | G95: 10
A96: 83 | B96: 262080.9775 | C96: 259142.2371 | D96: 2938.740381 | E96: 260607.465 | F96: 7 | G96: 11
A97: 84 | B97: 262080.9775 | C97: 260607.465 | D97: 1473.512496 | E97: 0 | F97: 7 | G97: 12
A98: -
A99: -
A100: -
A101: -
A102: -
A103: -
A104: -
A105: -
A106: -
A107: -
A108: -
A109: -
A110: -
A111: -
A112: -
A113: -
A114: -
A115: -
A116: -
A117: -
A118: -
A119: -
A120: -
A121: -
A122: -
A123: -
A124: -
A125: -
A126: -
A127: -
A128: -
A129: -
A130: -
A131: -
A132: -
A133: -
